fUSD/lending_fUSD_20251119
["ID","MTS","AMOUNT","RATE_DAILY","PERIOD"]
[394456187,1763593832486,-500.0,0.00017533,2]
[394456188,1763593832496,-500.0,0.00017533,2]
[394456189,1763593832506,-500.0,0.00017533,2]
[394456190,1763593832516,-500.0,0.00017533,2]
[394456191,1763593832527,-500.0,0.00017533,2]
[394456192,1763593832537,-500.0,0.00017533,2]
[394456193,1763593832548,-500.0,0.00017533,2]
[394456194,1763593832558,-500.0,0.00017533,2]
[394456195,1763593832567,-500.0,0.00017533,2]
[394456196,1763593832579,-193.31443241,0.00017533,2]
[394456197,1763593832589,-500.0,0.00017533,2]
[394456198,1763593832599,-500.0,0.00017533,2]
[394456199,1763593832609,-500.0,0.00017533,2]
[394456200,1763593832618,-500.0,0.00017533,2]
[394456201,1763593832627,-500.0,0.00017533,2]
[394456202,1763593832637,-500.0,0.00017533,2]
[394456203,1763593832647,-500.0,0.00017533,2]
[394456204,1763593832656,-500.0,0.00017533,2]
[394456205,1763593832666,-500.0,0.00017533,2]
[394456206,1763593832675,-500.0,0.00017533,2]
[394456207,1763593832684,-500.0,0.00017533,2]
[394456208,1763593832694,-500.0,0.00017533,2]
[394456209,1763593832703,-500.0,0.00017533,2]
[394456210,1763593832713,-500.0,0.00017533,2]
[394456211,1763593832722,-500.0,0.00017533,2]
[394456212,1763593832734,-500.0,0.00017533,2]
[394456213,1763593832743,-500.0,0.00017533,2]
[394456214,1763593832752,-500.0,0.00017533,2]
[394456215,1763593832762,-1279.86,0.00017533,2]
[394456216,1763593832771,-1279.86,0.00017533,2]
[394456217,1763593832781,-1279.86,0.00017533,2]
[394456218,1763593832791,-353.72095399,0.00017533,2]
[394456219,1763593832801,-1498.51,0.00017533,2]
[394456220,1763593832810,-500.0,0.00017533,2]
[394456221,1763593832819,-500.0,0.00017533,2]
[394456222,1763593832829,-500.0,0.00017533,2]
[394456223,1763593832838,-500.0,0.00017533,2]
[394456224,1763593832847,-500.0,0.00017533,2]
[394456225,1763593832856,-500.0,0.00017533,2]
[394456226,1763593832866,-71958.2370952,0.00017534,2]
[394456227,1763593832908,-1908.3,0.00017534,2]
[394456228,1763593832924,-77385.15168321,0.00017534,2]
[394456229,1763593832935,-14756.36522026,0.00017534,2]
[394456230,1763593832947,-994.05887454,0.00017534,2]
[394456231,1763593832958,-1225.72336596,0.00017534,2]
[394456232,1763593832969,-3903.9,0.00017534,2]
[394456241,1763593837526,-587868.26376083,0.00017534,2]
[394456243,1763593837536,-935.0,0.00017534,2]
[394456245,1763593837545,-18594.57251038,0.00017538,2]
[394456247,1763593837554,-232.0,0.0001756,2]
[394456249,1763593837564,-232.0,0.00017572,2]
[394456251,1763593837573,-500.0,0.00017573,2]
[394456252,1763593837582,-501.11720576,0.00017573,2]
[394456253,1763593837591,-500.0,0.00017573,2]
[394456254,1763593837600,-491.44400652,0.00017573,2]
[394456255,1763593837609,-500.0,0.00017573,2]
[394456256,1763593837618,-478.25879829,0.00017573,2]
[394456257,1763593837627,-500.0,0.00017573,2]
[394456259,1763593837636,-500.0,0.00017573,2]
[394456261,1763593837645,-500.0,0.00017573,2]
[394456263,1763593837654,-500.0,0.00017573,2]
[394456265,1763593837663,-500.0,0.00017573,2]
[394456267,1763593837672,-500.0,0.00017573,2]
[394456269,1763593837681,-500.0,0.00017573,2]
[394456271,1763593837690,-500.0,0.00017573,2]
[394456272,1763593837699,-500.0,0.00017573,2]
[394456273,1763593837709,-500.0,0.00017573,2]
[394456274,1763593837718,-500.0,0.00017573,2]
[394456275,1763593837727,-295.91820015,0.00017573,2]
[394456276,1763593837738,-215.58724508,0.00017573,2]
[394456277,1763593837747,-18594.57251038,0.00017589,2]
[394456278,1763593837756,-1500.0,0.00017596,2]
[394456279,1763593837764,-222.35315505,0.00017597,2]
[394456280,1763593837774,-1300.0,0.000176,6]
[394456281,1763593837783,-150.0,0.00017612,2]
[394456282,1763593837792,-47543.69,0.00017634,2]
[394456283,1763593837802,-18594.57251038,0.00017641,2]
[394456284,1763593837811,-232.0,0.00017645,2]
[394456285,1763593837820,-500.0,0.00017654,2]
[394456286,1763593837829,-500.0,0.00017654,2]
[394456288,1763593837838,-500.0,0.00017654,2]
[394456290,1763593837847,-18594.57251038,0.00017693,2]
[394456291,1763593837856,-1700.0,0.000177,6]
[394456292,1763593837866,-1562.43668398,0.00017702,2]
[394456293,1763593837876,-5365.19010539,0.00017702,2]
[394456295,1763593837886,-300.0,0.00017716,2]
[394456297,1763593837895,-18594.57251038,0.00017745,2]
[394456299,1763593837904,-5365.19010539,0.00017752,2]
[394456300,1763593837914,-2500.0,0.0001776,2]
[394456302,1763593837923,-300.0,0.0001776,2]
[394456304,1763593837932,-300.0,0.0001776,2]
[394456306,1763593837941,-300.0,0.0001776,2]
[394456308,1763593837951,-300.0,0.0001776,2]
[394456310,1763593837961,-300.0,0.0001776,2]
[394456312,1763593837970,-150.75211863,0.0001776,2]
[394456314,1763593837980,-2612.83081136,0.00017771,4]
[394456316,1763593837989,-250.0,0.00017771,2]
[394456318,1763593837998,-300.0,0.00017771,2]
[394456320,1763593838007,-351.33453125,0.00017771,2]
[394456322,1763593838016,-18594.57251038,0.00017796,2]
[394456324,1763593838026,-300.0,0.000178,6]
[394456326,1763593838036,-5365.19010539,0.00017801,2]
[394456328,1763593838046,-1498.51,0.00017807,2]
[394456330,1763593838057,-300.0,0.00017814,2]
[394456332,1763593838067,-300.0,0.00017814,2]
[394456334,1763593838080,-150.0,0.00017814,2]
[394456336,1763593838090,-193.0,0.00017814,2]
[394456338,1763593838099,-1416.03484,0.0001782,2]
[394456340,1763593838110,-1741.979,0.00017843,2]
[394456342,1763593838121,-18594.57251038,0.00017848,2]
[394456344,1763593838131,-3373.0,0.0001785,2]
[394456346,1763593838142,-5365.19010539,0.00017851,2]
[394456348,1763593838154,-1213.05065276,0.00017855,2]
[394456350,1763593838165,-200.0,0.00017855,2]
[394456352,1763593838175,-25000.0,0.00017856,3]
[394456354,1763593838186,-200.0,0.00017856,2]
[394456356,1763593838196,-200.0,0.00017856,2]
[394456358,1763593838206,-479.42350612,0.00017856,3]
[394456360,1763593838216,-160.385,0.00017859,2]
[394456362,1763593838226,-25000.0,0.00017865,3]
[394456363,1763593838240,-1000.0,0.00017871,2]
[394456365,1763593838254,-1000.0,0.00017871,2]
[394456367,1763593838265,-263.153,0.00017871,2]
[394456368,1763593838275,-150.0,0.00017873,2]
[394456369,1763593838285,-25000.0,0.00017874,3]
[394456370,1763593838294,-25000.0,0.00017882,3]
[394456371,1763593838304,-333.09,0.00017888,2]
[394456372,1763593838315,-300.2,0.00017889,2]
[394456373,1763593838324,-617.34311388,0.00017899,2]
[394456374,1763593838334,-500.0,0.00017899,2]
[394456375,1763593838344,-5495.6647,0.000179,2]
[394456376,1763593838354,-33339.3297,0.000179,2]
[394456377,1763593838364,-3011.9463,0.000179,2]
[394456378,1763593838374,-1000.0,0.000179,2]
[394456379,1763593838384,-5365.19010539,0.000179,2]
[394456380,1763593838394,-2069.65343036,0.000179,2]
[394456381,1763593838403,-300.0,0.000179,6]
[394456382,1763593838413,-18594.57251038,0.000179,2]
[394456383,1763593838422,-166.69843696,0.000179,2]
[394456384,1763593838432,-658.43957406,0.000179,3]
[394456385,1763593838441,-709.66528351,0.000179,2]
[394456386,1763593838451,-372.82139241,0.000179,2]
[394456387,1763593838462,-216.89755253,0.000179,2]
[394456388,1763593838482,-8838.43028824,0.000179,2]
[394456389,1763593838492,-1416.03484,0.0001793,2]
[394456390,1763593838502,-420.0,0.00017941,2]
[394456391,1763593838512,-500.0,0.00017973,2]
[394456392,1763593838522,-500.0,0.00017973,2]
[394456393,1763593838531,-315.85569772,0.00017973,2]
[394456394,1763593838540,-161.55812693,0.00017973,2]
[394456395,1763593838550,-500.0,0.00017973,2]
[394456396,1763593838559,-500.0,0.00017973,2]
[394456397,1763593838568,-500.0,0.00017973,2]
[394456398,1763593838578,-500.0,0.00017973,2]
[394456399,1763593838587,-500.0,0.00017973,2]
[394456400,1763593838597,-500.0,0.00017973,2]
[394456401,1763593838607,-500.0,0.00017973,2]
[394456402,1763593838617,-500.0,0.00017973,2]
[394456403,1763593838628,-500.0,0.00017973,2]
[394456404,1763593838638,-500.0,0.00017973,2]
[394456405,1763593838647,-500.0,0.00017973,2]
[394456406,1763593838658,-500.0,0.00017973,2]
[394456407,1763593838668,-500.0,0.00017973,2]
[394456408,1763593838677,-500.0,0.00017973,2]
[394456409,1763593838687,-571.75692133,0.00017973,2]
[394456410,1763593838852,-500.0,0.00017973,2]
[394456411,1763593838862,-500.0,0.00017982,2]
[394456412,1763593838872,-1213.05065276,0.0001799,2]
[394456413,1763593838881,-1213.05065276,0.0001799,2]
[394456414,1763593838892,-151.0,0.00017997,2]
[394456415,1763593838901,-151.0,0.00017997,2]
[394456416,1763593838911,-500.0,0.00017999,2]
[394456417,1763593838920,-500.0,0.00017999,2]
[394456418,1763593838929,-500.0,0.00017999,2]
[394456419,1763593838939,-500.0,0.00017999,2]
[394456420,1763593838948,-304.92180814,0.00017999,2]
[394456421,1763593838957,-6725667.02763973,0.00018,2]
[394456422,1763593838977,-1298.01987285,0.00018,2]
[394456423,1763593839720,-524.4549375,0.00018,2]
[394456433,1763593845831,-2103.1608,0.00018,2]
[394456434,1763593845843,-1633.38599341,0.00018,2]
[394456464,1763594237629,197.29,8.381e-05,2]
[394456465,1763594237839,197.29,8.822e-05,2]
[394456466,1763594238045,197.29,9.263e-05,2]
[394456467,1763594238273,197.29,9.704e-05,2]
[394456468,1763594238489,197.29,0.00010145,2]
[394456469,1763594238707,197.29,0.00010586,2]
[394456470,1763594238920,197.29,0.00011027,2]
[394456471,1763594239124,197.29,0.00011468,2]
[394456472,1763594239329,197.29,0.00011909,2]
[394456473,1763594239546,197.29,0.00012351,2]
[394456474,1763594239775,197.29,0.00012792,2]
[394456475,1763594240013,197.29,0.00013233,2]
[394456476,1763594240303,197.29,0.00013674,2]
[394456477,1763594240513,197.29,0.00014115,2]
[394456478,1763594240925,197.29,0.00014556,2]
[394456479,1763594241161,197.29,0.00014997,2]
[394456480,1763594241376,197.29,0.00015438,2]
[394456481,1763594241588,197.29,0.00015879,2]
[394456584,1763594328908,496.51,0.00013699,2]
[394456620,1763594606951,299.99,0.00017072,4]
[394456621,1763594678834,244.42656903,0.000161,2]
[394456622,1763594688781,-197.29,0.0001632,2]
[394456623,1763594688804,-259.62329686,0.00016376,2]
[394456624,1763594688828,-250.0,0.00016431,2]
[394456625,1763594688852,-181.60109685,0.00016519,2]
[394456626,1763594688880,-250.0,0.00016565,2]
[394456627,1763594688905,-1500.0,0.00016585,2]
[394456628,1763594688927,-1000.0,0.00016619,2]
[394456629,1763594688950,-263.24,0.0001662,2]
[394456630,1763594688973,-197.29,0.00016762,2]
[394456631,1763594688996,-420.22,0.00016796,2]
[394456632,1763594689026,-503.25625104,0.00016847,2]
[394456633,1763594689055,-300.0,0.00017019,2]
[394456634,1763594689078,-477.47935525,0.0001702,2]
[394456639,1763594798558,166.66,0.00015913,2]
[394456640,1763594811527,4776.54131919,0.000162,5]
[394456641,1763594811552,50000.0,0.000162,5]
[394456642,1763594811577,41371.34731383,0.000162,5]
[394456644,1763594912512,1062.28598876,0.0003,120]
[394456645,1763594914000,8000.0,0.00032,120]
[394456646,1763594915551,9833.35,0.00015,2]
[394456647,1763594915575,10000.01,0.00015,2]
[394456648,1763594915599,3308.99698038,0.00015,2]
[394456654,1763595016972,761.0,0.00030932,120]
[394456655,1763595018370,761.0,0.00032478,120]
[394456663,1763595031800,-166.66,0.00016248,2]
[394456664,1763595031962,-150.0,0.00016389,2]
[394456665,1763595031972,-166.66,0.00016583,2]
[394456666,1763595031981,-200.0,0.00016682,2]
[394456667,1763595031990,-3755.6330738,0.000169,2]
[394456668,1763595031999,-166.66,0.00016918,2]
[394456669,1763595032008,-409.56968623,0.00016973,2]
[394456670,1763595032019,-114.89691229,0.00016973,2]
[394456671,1763595032028,-500.0,0.00016973,2]
[394456672,1763595032037,-500.0,0.00016973,2]
[394456673,1763595032046,-220.0,0.00016999,2]
[394456674,1763595032055,-300.0,0.00016999,2]
[394456675,1763595032064,-300.0,0.00016999,2]
[394456676,1763595032073,-811.00308771,0.00016999,2]
[394456677,1763595032084,-388.99691229,0.00016999,2]
[394456678,1763595032093,-550.0,0.00016999,2]
[394456679,1763595032102,-150.97472198,0.00016999,2]
[394456680,1763595032111,-319.49471978,0.00016999,2]
[394456681,1763595032123,-180.50528022,0.00016999,2]
[394456682,1763595032131,-500.0,0.00016999,2]
[394456683,1763595032140,-500.0,0.00016999,2]
[394456684,1763595032150,-565.2519037,0.00016999,2]
[394456685,1763595032159,-167.54437977,0.00016999,2]
[394456686,1763595032167,-92036.88469668,0.00017,2]
[394456687,1763595032178,-37257.57161274,0.00017,2]
[394456696,1763595038000,-1016006.61259599,0.00017,2]
[394456697,1763595038009,-160.0,0.00017,2]
[394456698,1763595038018,-3755.63307377,0.00017011,2]
[394456699,1763595038028,-250.0,0.00017019,2]
[394456700,1763595038037,-22.52064475,0.0001702,2]
[394456701,1763595038046,-999.99,0.0001702,2]
[394456702,1763595038055,-324.75,0.0001702,2]
[394456703,1763595038064,-150.99,0.0001702,2]
[394456704,1763595038073,-1199.74,0.0001702,2]
[394456705,1763595038083,-172.39,0.00017072,2]
[394456706,1763595038092,-362.49,0.00017072,2]
[394456707,1763595038101,-9999.99,0.00017072,2]
[394456708,1763595038110,-768.05,0.00017072,2]
[394456709,1763595038119,-1733.0,0.00017095,2]
[394456710,1763595038128,-500.0,0.000171,2]
[394456711,1763595038138,-1733.0,0.00017102,2]
[394456712,1763595038147,-3755.63307377,0.00017122,2]
[394456713,1763595038156,-1733.0,0.0001713,2]
[394456714,1763595038166,-151.0,0.00017215,2]
[394456715,1763595038175,-151.0,0.00017215,2]
[394456716,1763595038185,-151.0,0.00017215,2]
[394456717,1763595038195,-1852.42,0.00017226,2]
[394456718,1763595038204,-3755.63307377,0.00017233,2]
[394456719,1763595038214,-166.66,0.00017253,2]
[394456720,1763595038223,-3755.63307377,0.00017344,2]
[394456721,1763595038232,-177.0,0.00017363,2]
[394456722,1763595038242,-3755.63307377,0.00017456,2]
[394456723,1763595038251,-480.02033956,0.00017479,2]
[394456724,1763595038260,-1733.0,0.00017482,2]
[394456725,1763595038270,-1733.0,0.00017487,2]
[394456726,1763595038279,-808.70043517,0.00017511,2]
[394456727,1763595038288,-415.61370264,0.00017521,2]
[394456728,1763595038298,-500.0,0.00017521,2]
[394456729,1763595038307,-222.35315505,0.00017556,2]
[394456730,1763595038316,-3755.63307377,0.00017567,2]
[394456731,1763595038325,-166.66,0.00017588,2]
[394456732,1763595038334,-238.93,0.00017606,2]
[394456733,1763595038343,-500.0,0.00017644,2]
[394456734,1763595038352,-245.82,0.00017647,2]
[394456735,1763595038362,-500.0,0.00017648,2]
[394456736,1763595038371,-177.0,0.00017667,2]
[394456737,1763595038380,-3755.63307377,0.00017678,2]
[394456738,1763595038390,-700.83,0.000177,2]
[394456739,1763595038399,-700.83,0.000177,2]
[394456740,1763595038408,-177.0,0.0001771,2]
[394456741,1763595038418,-177.0,0.00017723,2]
[394456742,1763595038428,-151.0,0.00017769,2]
[394456743,1763595038438,-760000.0,0.00017772,2]
[394456744,1763595038447,-226.67878745,0.00017773,2]
[394456745,1763595038459,-508.65666473,0.00017773,2]
[394456746,1763595038469,-500.0,0.00017773,2]
[394456747,1763595038478,-500.0,0.00017773,2]
[394456748,1763595038487,-546.49659787,0.00017773,2]
[394456749,1763595038497,-500.0,0.00017773,2]
[394456750,1763595038516,-629.01704566,0.00017773,2]
[394456751,1763595038527,-500.0,0.00017773,2]
[394456752,1763595038537,-500.0,0.00017773,2]
[394456753,1763595038548,-500.0,0.00017773,2]
[394456754,1763595038558,-571.75692133,0.00017773,2]
[394456755,1763595038567,-500.0,0.00017773,2]
[394456756,1763595038577,-500.0,0.00017773,2]
[394456757,1763595038587,-500.0,0.00017773,2]
[394456758,1763595038597,-500.0,0.00017773,2]
[394456759,1763595038606,-214.23235065,0.00017784,2]
[394456760,1763595038616,-3755.63307377,0.00017789,2]
[394456761,1763595038626,-248.12519687,0.000178,2]
[394456762,1763595038636,-1393.584,0.000178,2]
[394456763,1763595038645,-1000.0,0.000178,2]
[394456764,1763595038655,-172.95843943,0.000178,2]
[394456765,1763595038665,-2500.0,0.000178,2]
[394456766,1763595038675,-160.385,0.00017807,2]
[394456767,1763595038685,-172.95843942,0.00017833,2]
[394456768,1763595038695,-177.0,0.00017854,2]
[394456769,1763595038704,-150.0,0.00017856,2]
[394456770,1763595038714,-150.0,0.00017857,2]
[394456771,1763595038723,-172.95843942,0.00017867,2]
[394456772,1763595038733,-722.40270892,0.0001787,2]
[394456773,1763595038742,-1042.04955123,0.0001787,2]
[394456774,1763595038752,-540.9107369,0.0001787,2]
[394456775,1763595038762,-43370.07591125,0.00017872,2]
[394456776,1763595038771,-250.0,0.00017873,2]
[394456777,1763595038785,-300.0,0.00017873,2]
[394456778,1763595038794,-300.0,0.00017873,2]
[394456779,1763595038803,-500.0,0.00017873,2]
[394456780,1763595038813,-500.0,0.00017899,2]
[394456781,1763595038822,-500.0,0.00017899,2]
[394456782,1763595038831,-556.84,0.00017899,2]
[394456783,1763595038840,-500.0,0.00017899,2]
[394456784,1763595038849,-500.0,0.00017899,2]
[394456785,1763595038859,-417.54862495,0.00017899,2]
[394456786,1763595038869,-514.28691293,0.00017899,2]
[394456787,1763595038879,-1140.71,0.00017899,2]
[394456788,1763595038889,-1140.71,0.00017899,2]
[394456789,1763595038898,-1140.71,0.00017899,2]
[394456790,1763595038907,-1104.991,0.000179,2]
[394456791,1763595038917,-1000.0,0.000179,2]
[394456792,1763595038927,-1363.47231536,0.000179,2]
[394456793,1763595038937,-172.95843942,0.000179,2]
[394456794,1763595038947,-1316.87914808,0.000179,3]
[394456795,1763595038956,-845.72484322,0.000179,2]
[394456796,1763595038966,-1419.33056702,0.000179,2]
[394456797,1763595038976,-745.64278482,0.000179,2]
[394456798,1763595038985,-333.39687388,0.000179,2]
[394456799,1763595038994,-17676.86057646,0.000179,2]
[394456800,1763595039004,-3755.63307377,0.000179,2]
[394456801,1763595039013,-2490.0,0.000179,2]
[394456802,1763595039024,-177.0,0.00017911,2]
[394456803,1763595039033,-500.0,0.00017973,2]
[394456804,1763595039042,-500.0,0.00017973,2]
[394456805,1763595039052,-500.0,0.00017973,2]
[394456806,1763595039061,-500.0,0.00017973,2]
[394456807,1763595039070,-529.06851033,0.00017973,2]
[394456808,1763595039080,-500.0,0.00017973,2]
[394456809,1763595039089,-500.0,0.00017973,2]
[394456810,1763595039099,-500.0,0.00017973,2]
[394456811,1763595039109,-180.5217076,0.00017973,2]
[394456812,1763595039118,-501.23358505,0.00017973,2]
[394456813,1763595039127,-500.0,0.00017973,2]
[394456814,1763595039137,-150.0,0.00017973,2]
[394456815,1763595039146,-281.16520544,0.00017973,2]
[394456816,1763595039157,-500.0,0.00017982,2]
[394456817,1763595039166,-6447.40013926,0.00017984,2]
[394456818,1763595039177,-177.0,0.00017984,2]
[394456819,1763595039187,-808.70043517,0.0001799,2]
[394456820,1763595039197,-808.70043517,0.0001799,2]
[394456821,1763595039209,-151.0,0.00017997,2]
[394456822,1763595039219,-1140.71,0.00017998,2]
[394456823,1763595039229,-365670.5026155,0.00017999,2]
[394456824,1763595039238,-5722.1262322,0.00017999,2]
[394456825,1763595039248,-328.42672177,0.00017999,2]
[394456826,1763595039257,-59813.3340991,0.00017999,2]
[394456827,1763595039267,-3008351.57157022,0.00018,2]
[394456828,1763595039277,-150.0,0.00018,2]
[394456829,1763595039286,-595.92536202,0.00018,2]
[394456830,1763595039295,-151.0,0.00018,2]
[394456831,1763595039305,-151.0,0.00018,2]
[394456832,1763595039314,-200.0,0.00018,2]
[394456833,1763595039324,-150.0,0.00018,2]
[394456834,1763595039333,-2171.19519142,0.00018,2]
[394456835,1763595039342,-200.0,0.00018,2]
[394456836,1763595039351,-1240.9342232,0.00018,2]
[394456837,1763595039360,-1352589.50372093,0.00018,2]
[394456838,1763595039834,-822.03063774,0.00017998,2]
[394456839,1763595039849,-318.67936226,0.00017998,2]
[394456840,1763595039859,-421.26283624,0.00017999,2]
[394456841,1763595040097,-719.44716376,0.00017999,2]
[394456842,1763595040107,-1140.71,0.00017999,2]
[394456843,1763595040116,-565.38925614,0.00017999,2]
[394456847,1763595044058,-500.0,0.00016999,2]
[394456848,1763595044068,-306.1549701,0.00016999,2]
[394456849,1763595044078,-575.32074386,0.00017999,2]
[394456850,1763595044088,-1140.71,0.00017999,2]
[394456851,1763595044097,-1140.71,0.00017999,2]
[394456852,1763595044260,-289.61028621,0.00017999,2]
[394456865,1763595045951,-500.0,0.00016999,2]
[394456866,1763595045960,-500.0,0.00016999,2]
[394456867,1763595045970,-500.0,0.00016999,2]
[394456868,1763595045979,-500.0,0.00016999,2]
[394456869,1763595045988,-500.0,0.00016999,2]
[394456870,1763595045997,-500.0,0.00016999,2]
[394456871,1763595046006,-500.0,0.00016999,2]
[394456872,1763595046015,-500.0,0.00016999,2]
[394456873,1763595046024,-500.0,0.00016999,2]
[394456874,1763595046033,-500.0,0.00016999,2]
[394456875,1763595046042,-500.0,0.00016999,2]
[394456876,1763595046051,-500.0,0.00016999,2]
[394456877,1763595046060,-500.0,0.00016999,2]
[394456878,1763595046070,-500.0,0.00016999,2]
[394456879,1763595046079,-500.0,0.00016999,2]
[394456880,1763595046089,-500.0,0.00016999,2]
[394456881,1763595046098,-500.0,0.00016999,2]
[394456882,1763595046107,-500.0,0.00016999,2]
[394456883,1763595046117,-500.0,0.00016999,2]
[394456884,1763595046127,-500.0,0.00016999,2]
[394456885,1763595046136,-500.0,0.00016999,2]
[394456886,1763595046145,-851.09971379,0.00017999,2]
[394456887,1763595046155,-1140.71,0.00017999,2]
[394456888,1763595046164,-1140.71,0.00017999,2]
[394456889,1763595046173,-1140.71,0.00017999,2]
[394456890,1763595046182,-1140.71,0.00017999,2]
[394456891,1763595046192,-1140.71,0.00017999,2]
[394456894,1763595046201,-1140.71,0.00017999,2]
[394456896,1763595046211,-18324.80367171,0.00018,2]
[394456899,1763595046235,-290.25404442,0.00016999,2]
[394456902,1763595046250,-54.39475547,0.00016999,2]
[394456904,1763595046259,-608.70653979,0.00018,2]
[394456906,1763595046270,-582.0582955,0.00018,2]
[394456909,1763595046285,-1509.34266157,0.00018,2]
[394456936,1763595088465,200.0,0.000171,6]
[394456937,1763595090563,500.0,0.000172,6]
[394456938,1763595092649,700.0,0.000173,6]
[394456939,1763595094730,1000.0,0.000174,6]
[394456956,1763595319786,199.52,0.00013432,2]
[394456957,1763595429639,1600.0,0.00025096,120]
[394456958,1763595603007,1581.131048,0.00032876,120]
[394456959,1763595618963,1107.0,0.00024437,120]
[394456960,1763595622294,1107.0,0.00025659,120]
[394456961,1763595623827,1107.0,0.00026942,120]
[394456962,1763595625180,1107.0,0.00028289,120]
[394456963,1763595626879,1107.0,0.00029704,120]
[394456964,1763595628182,1107.0,0.00031189,120]
[394456965,1763595629513,1107.0,0.00032748,120]
[394456968,1763595713995,500.0,0.000421,120]
[394456969,1763595714279,500.0,0.000421,120]
[394456970,1763595714543,500.0,0.000421,120]
[394456971,1763595714807,500.0,0.000421,120]
[394456972,1763595715065,500.0,0.000421,120]
[394456973,1763595715316,500.0,0.000421,120]
[394456974,1763595715551,500.0,0.000421,120]
[394456975,1763595715792,500.0,0.000421,120]
[394456976,1763595716067,500.0,0.000421,120]
[394456977,1763595716324,500.0,0.000421,120]
[394456978,1763595716558,500.0,0.000421,120]
[394456979,1763595716804,500.0,0.000421,120]
[394456980,1763595717258,500.0,0.000421,120]
[394456981,1763595717347,500.0,0.000421,120]
[394456982,1763595717623,500.0,0.000421,120]
[394456983,1763595717876,500.0,0.000421,120]
[394456984,1763595718121,500.0,0.000421,120]
[394456985,1763595718339,500.0,0.000421,120]
[394456986,1763595718572,500.0,0.000421,120]
[394456987,1763595718803,499.98999998,0.000421,120]
[394456989,1763595814409,299.99,0.00016605,4]
[394456991,1763595907662,999.0,0.00016337,3]
[394456998,1763596031262,260.0,0.000421,30]
[394457017,1763596159766,150.0,0.00016303,120]
[394457147,1763596231882,-1043.13,0.00016294,2]
[394457149,1763596231892,-150.0,0.00016303,2]
[394457151,1763596231903,-250.0,0.00016318,2]
[394457152,1763596231912,-312.5701946,0.00016338,2]
[394457154,1763596231922,-250.0,0.00016389,2]
[394457156,1763596231933,-200.0,0.00016433,2]
[394457157,1763596231942,-161.14,0.00016438,2]
[394457158,1763596231953,-1591.92525587,0.00016438,2]
[394457159,1763596231964,-1429.16649361,0.00016438,2]
[394457160,1763596231979,-938.73825052,0.00016438,2]
[394457161,1763596231989,-1200.0,0.00016441,2]
[394457162,1763596231997,-300.0,0.00016451,2]
[394457163,1763596232007,-300.0,0.00016451,2]
[394457164,1763596232016,-1189.97,0.00016461,2]
[394457165,1763596232025,-500.0,0.000165,2]
[394457166,1763596232034,-500.0,0.000165,2]
[394457167,1763596232043,-500.0,0.000165,2]
[394457168,1763596232052,-550.0,0.00016513,2]
[394457169,1763596232062,-22933.98739542,0.00016514,2]
[394457170,1763596232072,-19609.70260458,0.00016514,2]
[394457171,1763596232083,-1363.39,0.00016522,2]
[394457172,1763596232092,-150.0,0.00016541,2]
[394457173,1763596232101,-1000.0,0.00016604,2]